[Event "FIDE WYCC Open U14 2023"]
[Site "Montesilvano"]
[Date "2023.11.16"]
[Round "4.34"]
[White "La Barbera, Manfredi"]
[Black "Sheahan, Gavin"]
[Result "1-0"]
[ECO "C11"]
[WhiteElo "2043"]
[BlackElo "1807"]
[Annotator "NA RC"]
[PlyCount "47"]
[EventDate "2023.11.13"]
[EventType "swiss"]
[EventCountry "ITA"]
[SourceTitle "playchess.com"]
[Source "ChessBase"]
[SourceQuality "1"]
[TimeControl "40/5400+30:1800+30"]

1. e4 {[%emt 0:00:10]} e6 {[%emt 0:00:04]} 2. d4 {[%emt 0:00:08]} d5 {[%emt 0:00:04]} 3. Nc3 {[%emt 0:00:08]} Nf6 {[%emt 0:00:17]} 4. e5 {[%emt 0:00:18]} Nfd7 {[%emt 0:00:05]} 5. f4 {[%emt 0:00:07]} c5 {[%emt 0:00:13]} 6. Nf3 {[%emt 0:00:26]} Nc6 {[%emt 0:00:11]} 7. Be3 {[%emt 0:00:08]} a6 {[%emt 0:00:05]} 8. a3 {[%emt 0:00:12]} b5 {[%emt 0:00:12]} 9. Bd3 {[%emt 0:00:22]} Qb6 {[%emt 0:01:05]} 10. O-O {[%emt 0:00:40]} cxd4 {[%emt 0:02:08]} 11. Bf2 {[%emt 0:00:03]} Nc5 {[%emt 0:11:30]} 12. Nxd4 {[%emt 0:21:12]} Nxd3 {[%emt 0:02:37]} 13. Qxd3 {[%emt 0:02:34]} Nxd4 {[%emt 0:02:21]} 14. Bxd4 {[%emt 0:00:39]} Qc6 {[%emt 0:03:12]} 15. Rae1 {[%emt 0:16:20]} b4 {[%emt 0:04:15]} 16. axb4 {[%emt 0:02:50]} Bxb4 {[%emt 0:00:17]} 17. f5 {[%emt 0:10:59]} exf5 {[%emt 0:03:35]} 18. e6 {[%emt 0:09:26]} Bxc3 {[%emt 0:22:55]} 19. exf7+ {[%emt 0:06:45]} Kxf7 {[%emt 0:00:16]} 20. bxc3 {[%emt 0:00:56]} Re8 {[%emt 0:16:34]} 21. Qg3 {[%emt 0:01:17]} Rg8 {[%emt 0:03:28]} 22. Qg5 {[%emt 0:02:13]} Qd7 {[%emt 0:01:36]} 23. Rxf5+ {[%emt 0:00:19]} Qxf5 {[%emt 0:00:13]} 24. Re7+ {[%emt 0:00:02]} 1-0

[Event "FIDE WYCC Open U14 2023"]
[Site "Montesilvano"]
[Date "2023.11.16"]
[Round "4.35"]
[White "Amankos, Zhanbolat"]
[Black "Fan, Jingyi"]
[Result "0-1"]
[ECO "B24"]
[WhiteElo "1164"]
[BlackElo "2035"]
[Annotator "NA RC"]
[PlyCount "66"]
[EventDate "2023.11.13"]
[EventType "swiss"]
[EventCountry "ITA"]
[SourceTitle "playchess.com"]
[Source "ChessBase"]
[SourceQuality "1"]
[TimeControl "40/5400+30:1800+30"]

1. e4 {[%emt 0:00:04]} c5 {[%emt 0:00:05]} 2. Nc3 {[%emt 0:00:06]} Nc6 {[%emt 0:00:13]} 3. Bb5 {[%emt 0:00:04]} e6 {[%emt 0:00:29]} 4. Nf3 {[%emt 0:00:35]} Nge7 {[%emt 0:00:15]} 5. Bxc6 {[%emt 0:00:38]} Nxc6 {[%emt 0:00:34]} 6. O-O {[%emt 0:00:27]} Be7 {[%emt 0:00:43]} 7. d4 {[%emt 0:00:05]} cxd4 {[%emt 0:00:05]} 8. Nxd4 {[%emt 0:00:04]} Qc7 {[%emt 0:01:12]} 9. Be3 {[%emt 0:00:44]} O-O {[%emt 0:01:22]} 10. f3 {[%emt 0:01:16]} a6 {[%emt 0:00:24]} 11. Qd2 {[%emt 0:01:24]} Ne5 {[%emt 0:04:44]} 12. Bf4 {[%emt 0:01:20]} d6 {[%emt 0:02:43]} 13. b3 {[%emt 0:06:03]} b5 {[%emt 0:07:55]} 14. Bg3 {[%emt 0:01:28]} Bb7 {[%emt 0:01:38]} 15. f4 {[%emt 0:03:59]} Ng4 {[%emt 0:03:29]} 16. Qd3 {[%emt 0:09:07]} Rac8 {[%emt 0:04:20]} 17. Rf3 {[%emt 0:07:01]} Qa5 {[%emt 0:23:58]} 18. h3 {[%emt 0:10:08]} Nf6 {[%emt 0:00:43]} 19. Re1 {[%emt 0:06:37]} d5 {[%emt 0:01:42]} 20. e5 {[%emt 0:01:31]} Ne4 {[%emt 0:00:28]} 21. Nxe4 {[%emt 0:03:56]} dxe4 {[%emt 0:00:06]} 22. Rxe4 {[%emt 0:00:02]} Rfd8 {[%emt 0:01:20]} 23. Kh2 {[%emt 0:04:19]} Bc5 {[%emt 0:04:13]} 24. c3 {[%emt 0:01:15]} b4 {[%emt 0:01:34]} 25. Bh4 {[%emt 0:01:16]} Rd7 {[%emt 0:02:40]} 26. Rg3 {[%emt 0:00:24]} g6 {[%emt 0:05:22]} 27. Ree3 {[%emt 0:00:21]} bxc3 {[%emt 0:02:24]} 28. f5 {[%emt 0:03:28]} Rxd4 {[%emt 0:01:29]} 29. Qf1 {[%emt 0:00:32]} Rxh4 {[%emt 0:03:29]} 30. fxe6 {[%emt 0:00:33]} Qc7 {[%emt 0:04:20]} 31. Qf6 {[%emt 0:03:54]} Bxe3 {[%emt 0:01:01]} 32. Rxe3 {[%emt 0:01:31]} Re4 {[%emt 0:02:44]} 33. Rg3 {[%emt 0:07:24]} Re8 {[%emt 0:02:43]} 0-1

[Event "FIDE WYCC Open U14 2023"]
[Site "Montesilvano"]
[Date "2023.11.17"]
[Round "5.1"]
[White "Ermitsch, Magnus"]
[Black "Sowinski, Pawel"]
[Result "1/2-1/2"]
[ECO "B47"]
[WhiteElo "2206"]
[BlackElo "2347"]
[Annotator "RC"]
[PlyCount "60"]
[EventDate "2023.11.13"]
[EventType "swiss"]
[EventCountry "ITA"]
[SourceTitle "playchess.com"]
[Source "ChessBase"]
[SourceQuality "1"]
[TimeControl "40/5400+30:1800+30"]

1. e4 {[%emt 0:00:03]} c5 {[%emt 0:00:01]} 2. Nf3 {[%emt 0:00:07]} e6 {[%emt 0:00:04]} 3. d4 {[%emt 0:00:05]} cxd4 {[%emt 0:00:01]} 4. Nxd4 {[%emt 0:00:13]} Nc6 {[%emt 0:00:02]} 5. Nc3 {[%emt 0:00:08]} Qc7 {[%emt 0:00:04]} 6. g3 {[%emt 0:01:43]} a6 {[%emt 0:00:07]} 7. Bg2 {[%emt 0:00:06]} Nf6 {[%emt 0:00:10]} 8. O-O {[%emt 0:00:07]} Nxd4 {[%emt 0:00:41]} 9. Qxd4 {[%emt 0:00:10]} Bc5 {[%emt 0:00:04]} 10. Bf4 {[%emt 0:00:22]} d6 {[%emt 0:00:02]} 11. Qd2 {[%emt 0:00:24]} h6 {[%emt 0:00:20]} 12. Rad1 {[%emt 0:00:33]} e5 {[%emt 0:00:05]} 13. Be3 {[%emt 0:00:07]} Bb4 {[%emt 0:00:01]} 14. Nb5 {[%emt 0:00:53]} axb5 {[%emt 0:00:29]} 15. Qxb4 {[%emt 0:00:06]} O-O {[%emt 0:03:41]} 16. a3 {[%emt 0:00:51]} Be6 {[%emt 0:04:29]} 17. c3 {[%emt 0:13:58]} Rfd8 {[%emt 0:13:24]} 18. Qxb5 {[%emt 0:09:07]} Bc4 {[%emt 0:02:32]} 19. Qb6 {[%emt 0:00:42]} Qxb6 {[%emt 0:05:33]} 20. Bxb6 {[%emt 0:00:07]} Bxf1 {[%emt 0:00:02]} 21. Bxd8 {[%emt 0:02:00]} Bxg2 {[%emt 0:00:02]} 22. Bxf6 {[%emt 0:00:07]} Bf3 {[%emt 0:00:07]} 23. Rd3 {[%emt 0:00:04]} Bxe4 {[%emt 0:00:06]} 24. Re3 {[%emt 0:00:03]} Bc2 {[%emt 0:03:59]} 25. Be7 {[%emt 0:01:59]} Ra6 {[%emt 0:00:01]} 26. c4 {[%emt 0:03:56]} f6 {[%emt 0:05:25]} 27. Rc3 {[%emt 0:02:52]} Bf5 {[%emt 0:00:03]} 28. b4 {[%emt 0:04:17]} Be6 {[%emt 0:01:20]} 29. b5 {[%emt 0:00:30]} Ra4 {[%emt 0:00:07]} 30. Bxd6 {[%emt 0:00:07]} Rxc4 {[%emt 0:00:10]} 1/2-1/2

[Event "FIDE WYCC Open U14 2023"]
[Site "Montesilvano"]
[Date "2023.11.17"]
[Round "5.2"]
[White "Daakshin Arun"]
[Black "Rustamov, Rustam"]
[Result "1/2-1/2"]
[ECO "E42"]
[WhiteElo "2342"]
[BlackElo "2229"]
[Annotator "RC"]
[PlyCount "141"]
[EventDate "2023.11.13"]
[EventType "swiss"]
[EventCountry "ITA"]
[SourceTitle "playchess.com"]
[Source "ChessBase"]
[SourceQuality "1"]
[TimeControl "40/5400+30:1800+30"]

1. d4 {[%emt 0:01:52]} Nf6 {[%emt 0:00:04]} 2. c4 {[%emt 0:00:15]} e6 {[%emt 0:00:08]} 3. Nc3 {[%emt 0:00:07]} Bb4 {[%emt 0:00:06]} 4. e3 {[%emt 0:00:16]} c5 {[%emt 0:02:55]} 5. Nge2 {[%emt 0:00:48]} cxd4 {[%emt 0:01:02]} 6. exd4 {[%emt 0:00:17]} d5 {[%emt 0:02:05]} 7. c5 {[%emt 0:01:12]} O-O {[%emt 0:01:03]} 8. a3 {[%emt 0:01:43]} Ba5 {[%emt 0:00:23]} 9. b4 {[%emt 0:03:39]} Bc7 {[%emt 0:00:03]} 10. Nb5 {[%emt 0:01:04]} Nc6 {[%emt 0:00:40]} 11. Nxc7 {[%emt 0:00:45]} Qxc7 {[%emt 0:00:03]} 12. b5 {[%emt 0:05:02]} Qa5+ {[%emt 0:12:12]} 13. Bd2 {[%emt 0:06:05]} Qxb5 {[%emt 0:00:04]} 14. Rb1 {[%emt 0:12:39]} Qc4 {[%emt 0:16:37]} 15. Rc1 {[%emt 0:07:10]} Qa6 16. Nc3 {[%emt 0:19:21]} Qa5 {[%emt 0:04:59]} 17. Nxd5 {[%emt 0:00:18]} Qd8 {[%emt 0:00:09]} 18. Nxf6+ {[%emt 0:00:33]} Qxf6 {[%emt 0:00:07]} 19. Bd3 {[%emt 0:08:57]} Rd8 {[%emt 0:05:16]} 20. Be3 {[%emt 0:03:38]} Nxd4 {[%emt 0:02:48]} 21. O-O {[%emt 0:02:02]} Nf5 {[%emt 0:03:14]} 22. Re1 {[%emt 0:04:04]} Bd7 {[%emt 0:00:43]} 23. Qh5 {[%emt 0:03:07]} Qg6 {[%emt 0:01:10]} 24. Qh3 {[%emt 0:01:42]} Bc6 {[%emt 0:00:32]} 25. Bb1 {[%emt 0:02:21]} Qf6 {[%emt 0:02:47]} 26. Bf4 {[%emt 0:02:01]} Rd5 {[%emt 0:06:48]} 27. Be4 {[%emt 0:02:12]} Rd7 {[%emt 0:00:30]} 28. Be5 {[%emt 0:01:30]} Qg6 {[%emt 0:00:58]} 29. Bxf5 {[%emt 0:02:38]} Qxf5 {[%emt 0:01:04]} 30. Qxf5 {[%emt 0:00:22]} exf5 {[%emt 0:00:10]} 31. Rcd1 {[%emt 0:01:14]} Rxd1 {[%emt 0:00:21]} 32. Rxd1 {[%emt 0:00:05]} Re8 {[%emt 0:00:04]} 33. Bc7 {[%emt 0:00:58]} f6 {[%emt 0:00:12]} 34. Rd8 {[%emt 0:01:42]} Kf7 {[%emt 0:00:21]} 35. Rxe8 {[%emt 0:00:07]} Kxe8 {[%emt 0:00:12]} 36. f3 {[%emt 0:01:38]} Kd7 {[%emt 0:00:05]} 37. Ba5 {[%emt 0:00:47]} Ke6 {[%emt 0:00:11]} 38. Kf2 {[%emt 0:00:04]} Kd5 {[%emt 0:00:37]} 39. Bb4 {[%emt 0:00:05]} Kd4 {[%emt 0:00:32]} 40. g3 {[%emt 0:00:00]} f4 {[%emt 0:00:00]} 41. gxf4 {[%emt 0:02:36]} f5 {[%emt 0:00:33]} 42. Ke2 {[%emt 0:03:58]} g6 {[%emt 0:00:21]} 43. h3 {[%emt 0:01:49]} a6 {[%emt 0:00:09]} 44. Kf2 {[%emt 0:00:38]} Bb5 {[%emt 0:00:09]} 45. h4 {[%emt 0:01:44]} Bd7 {[%emt 0:00:25]} 46. Ke2 {[%emt 0:00:38]} Be8 {[%emt 0:00:09]} 47. Kf2 {[%emt 0:00:50]} Bb5 {[%emt 0:00:04]} 48. Kg3 {[%emt 0:02:38]} Ke3 {[%emt 0:00:05]} 49. Ba5 {[%emt 0:03:15]} Bc6 {[%emt 0:00:10]} 50. Bb4 {[%emt 0:00:29]} Bxf3 {[%emt 0:00:09]} 51. Bc3 {[%emt 0:00:17]} Bd5 {[%emt 0:00:09]} 52. Be1 {[%emt 0:03:03]} h6 {[%emt 0:00:32]} 53. Bc3 {[%emt 0:01:00]} g5 {[%emt 0:00:37]} 54. hxg5 {[%emt 0:04:57]} hxg5 {[%emt 0:00:08]} 55. Be5 {[%emt 0:00:08]} Ke4 {[%emt 0:01:33]} 56. Bc7 {[%emt 0:00:46]} gxf4+ {[%emt 0:00:21]} 57. Bxf4 {[%emt 0:00:48]} Kd4 {[%emt 0:00:34]} 58. Bd6 {[%emt 0:00:38]} Kc4 {[%emt 0:00:09]} 59. Kf4 {[%emt 0:01:19]} Be4 {[%emt 0:01:25]} 60. Ke5 {[%emt 0:03:53]} a5 {[%emt 0:05:34]} 61. Bc7 {[%emt 0:01:12]} Kb5 62. Bb6 {[%emt 0:00:59]} Bc2 {[%emt 0:02:54]} 63. Kf4 {[%emt 0:00:36]} a4 {[%emt 0:00:09]} 64. Bd8 {[%emt 0:00:37]} Be4 {[%emt 0:00:08]} 65. Bb6 {[%emt 0:00:24]} Kc4 {[%emt 0:00:03]} 66. Ba5 {[%emt 0:00:22]} Bc2 {[%emt 0:00:34]} 67. Bb4 {[%emt 0:00:09]} Kd4 {[%emt 0:00:07]} 68. Ba5 {[%emt 0:00:19]} Be4 {[%emt 0:00:18]} 69. Be1 {[%emt 0:00:12]} Kc4 {[%emt 0:00:05]} 70. Bb4 {[%emt 0:00:04]} Kb3 {[%emt 0:00:02]} 71. Ke3 {[%emt 0:00:03]} 1/2-1/2

[Event "FIDE WYCC Open U14 2023"]
[Site "Montesilvano"]
[Date "2023.11.17"]
[Round "5.3"]
[White "Perossa, Nicolas"]
[Black "Farias, David Nuno M E"]
[Result "1-0"]
[ECO "B40"]
[WhiteElo "2330"]
[BlackElo "2149"]
[Annotator "RC"]
[PlyCount "125"]
[EventDate "2023.11.13"]
[EventType "swiss"]
[EventCountry "ITA"]
[SourceTitle "playchess.com"]
[Source "ChessBase"]
[SourceQuality "1"]
[TimeControl "40/5400+30:1800+30"]

1. e4 {[%emt 0:00:02]} c5 {[%emt 0:00:17]} 2. Nf3 {[%emt 0:00:10]} e6 {[%emt 0:00:12]} 3. g3 {[%emt 0:00:10]} Nc6 {[%emt 0:02:10]} 4. Bg2 {[%emt 0:00:27]} Nf6 {[%emt 0:04:45]} 5. Qe2 {[%emt 0:01:14]} e5 {[%emt 0:02:38]} 6. c3 {[%emt 0:01:33]} d6 {[%emt 0:01:29]} 7. h3 {[%emt 0:03:24]} Be7 {[%emt 0:00:51]} 8. O-O {[%emt 0:03:29]} O-O {[%emt 0:01:52]} 9. Rd1 {[%emt 0:14:44]} Re8 {[%emt 0:12:21]} 10. d4 {[%emt 0:14:30]} exd4 {[%emt 0:18:31]} 11. cxd4 {[%emt 0:00:16]} Bf8 {[%emt 0:02:07]} 12. Bg5 {[%emt 0:24:45]} h6 {[%emt 0:07:32]} 13. Bxf6 {[%emt 0:00:02]} Qxf6 {[%emt 0:00:02]} 14. Nc3 {[%emt 0:08:23]} cxd4 {[%emt 0:14:30]} 15. Nd5 {[%emt 0:00:02]} Qd8 {[%emt 0:00:33]} 16. Nxd4 {[%emt 0:01:06]} Bd7 {[%emt 0:03:56]} 17. Nb5 {[%emt 0:03:06]} Rc8 {[%emt 0:03:51]} 18. Ndc3 {[%emt 0:00:41]} Qf6 {[%emt 0:03:40]} 19. Qd2 {[%emt 0:00:54]} Red8 {[%emt 0:03:04]} 20. Nd5 {[%emt 0:02:27]} Qg6 {[%emt 0:01:30]} 21. Qe3 {[%emt 0:03:36]} a6 {[%emt 0:03:22]} 22. Nbc3 {[%emt 0:00:29]} Qh5 {[%emt 0:03:59]} 23. g4 {[%emt 0:13:02]} Qh4 {[%emt 0:00:53]} 24. Nb6 {[%emt 0:00:12]} Rb8 {[%emt 0:00:17]} 25. Ncd5 {[%emt 0:01:47]} Be6 {[%emt 0:03:05]} 26. Rac1 {[%emt 0:01:40]} g6 {[%emt 0:02:08]} 27. Nf4 {[%emt 0:01:13]} Re8 28. Bf1 {[%emt 0:00:33]} Bg7 {[%emt 0:03:08]} 29. Nxe6 {[%emt 0:00:24]} Rxe6 {[%emt 0:00:45]} 30. Bc4 {[%emt 0:00:14]} Re7 {[%emt 0:00:55]} 31. Nd5 {[%emt 0:00:36]} Ree8 32. Nf4 {[%emt 0:00:33]} Ne5 {[%emt 0:01:22]} 33. Bd5 {[%emt 0:00:25]} h5 {[%emt 0:00:39]} 34. Ng2 {[%emt 0:00:27]} Qf6 {[%emt 0:00:30]} 35. f4 {[%emt 0:00:39]} Nc6 {[%emt 0:00:26]} 36. Rd2 {[%emt 0:00:22]} hxg4 {[%emt 0:00:33]} 37. hxg4 {[%emt 0:00:01]} Nb4 {[%emt 0:00:31]} 38. Bb3 {[%emt 0:00:35]} Qe7 {[%emt 0:00:33]} 39. a3 {[%emt 0:00:48]} Nc6 {[%emt 0:00:10]} 40. Bd5 {[%emt 0:00:00]} Rbc8 {[%emt 0:00:00]} 41. g5 {[%emt 0:06:49]} Qd7 {[%emt 0:09:54]} 42. Rcd1 {[%emt 0:03:00]} Qg4 {[%emt 0:04:35]} 43. Kh2 {[%emt 0:04:08]} Nd8 {[%emt 0:05:57]} 44. Qh3 {[%emt 0:08:04]} Qxh3+ {[%emt 0:00:43]} 45. Kxh3 {[%emt 0:00:01]} Rc7 {[%emt 0:04:17]} 46. Kg4 {[%emt 0:01:45]} b5 {[%emt 0:06:06]} 47. Nh4 {[%emt 0:01:33]} Kf8 {[%emt 0:00:56]} 48. f5 {[%emt 0:03:41]} gxf5+ {[%emt 0:00:37]} 49. exf5 {[%emt 0:00:02]} Be5 {[%emt 0:00:48]} 50. f6 {[%emt 0:00:40]} Ne6 {[%emt 0:01:28]} 51. Rh1 {[%emt 0:01:11]} Nf4 {[%emt 0:00:32]} 52. Nf5 {[%emt 0:04:51]} Ng6 {[%emt 0:00:19]} 53. Rh7 {[%emt 0:00:26]} Rec8 {[%emt 0:00:55]} 54. Nh6 {[%emt 0:01:23]} Rc4+ {[%emt 0:00:36]} 55. Bxc4 {[%emt 0:00:01]} Rxc4+ {[%emt 0:00:00]} 56. Kf3 {[%emt 0:00:39]} Nh4+ {[%emt 0:00:47]} 57. Ke2 {[%emt 0:00:12]} Ke8 {[%emt 0:00:44]} 58. Nxf7 {[%emt 0:00:37]} Re4+ {[%emt 0:00:12]} 59. Kd1 {[%emt 0:00:17]} Nf3 {[%emt 0:00:17]} 60. Nxd6+ Bxd6 {[%emt 0:00:59]} 61. Rxd6 {[%emt 0:00:58]} Nxg5 {[%emt 0:00:12]} 62. Ra7 {[%emt 0:00:55]} Rf4 {[%emt 0:00:32]} 63. Rb6 {[%emt 0:00:23]} 1-0

[Event "FIDE WYCC Open U14 2023"]
[Site "Montesilvano"]
[Date "2023.11.17"]
[Round "5.4"]
[White "Ljepic, Andrej"]
[Black "Vingris, Mikelis"]
[Result "1-0"]
[ECO "B50"]
[WhiteElo "2236"]
[BlackElo "2127"]
[Annotator "ChessBase"]
[PlyCount "91"]
[EventDate "2023.11.13"]
[EventType "swiss"]
[EventCountry "ITA"]
[SourceTitle "playchess.com"]
[Source "ChessBase"]
[SourceQuality "1"]
[TimeControl "40/5400+30:1800+30"]

1. e4 {[%emt 0:00:02]} c5 {[%emt 0:01:21]} 2. Nf3 {[%emt 0:00:23]} d6 {[%emt 0:00:06]} 3. Bc4 {[%emt 0:00:07]} Nf6 {[%emt 0:01:52]} 4. d3 {[%emt 0:00:21]} e6 {[%emt 0:06:13]} 5. O-O {[%emt 0:00:23]} Be7 {[%emt 0:00:21]} 6. c3 {[%emt 0:00:24]} O-O {[%emt 0:00:57]} 7. Bb3 {[%emt 0:00:11]} b6 {[%emt 0:06:43]} 8. Re1 {[%emt 0:01:09]} Bb7 {[%emt 0:01:50]} 9. Nbd2 {[%emt 0:00:55]} Nbd7 {[%emt 0:01:50]} 10. Nf1 {[%emt 0:01:32]} Re8 {[%emt 0:04:48]} 11. Ng3 {[%emt 0:00:49]} Rc8 {[%emt 0:04:10]} 12. h3 {[%emt 0:01:30]} Bf8 {[%emt 0:05:36]} 13. d4 {[%emt 0:04:52]} c4 {[%emt 0:10:56]} 14. Ba4 {[%emt 0:05:18]} Bc6 {[%emt 0:05:22]} 15. Bc2 {[%emt 0:11:50]} e5 {[%emt 0:02:10]} 16. b3 {[%emt 0:04:39]} b5 {[%emt 0:08:16]} 17. d5 {[%emt 0:06:47]} Bb7 {[%emt 0:02:18]} 18. b4 {[%emt 0:02:51]} Nb6 {[%emt 0:10:43]} 19. Be3 {[%emt 0:01:42]} Qd7 {[%emt 0:02:10]} 20. a4 {[%emt 0:04:00]} bxa4 {[%emt 0:04:29]} 21. Rxa4 {[%emt 0:01:50]} Nxa4 {[%emt 0:01:16]} 22. Bxa4 {[%emt 0:00:46]} Qc7 {[%emt 0:00:20]} 23. Bxe8 {[%emt 0:00:54]} Rxe8 {[%emt 0:00:28]} 24. Qa4 {[%emt 0:01:30]} a6 {[%emt 0:01:39]} 25. Nd2 {[%emt 0:02:24]} Rc8 {[%emt 0:02:48]} 26. Ra1 {[%emt 0:03:23]} Qd7 {[%emt 0:01:33]} 27. Qxd7 {[%emt 0:07:27]} Nxd7 {[%emt 0:00:02]} 28. Ra5 {[%emt 0:01:16]} g6 {[%emt 0:03:11]} 29. b5 {[%emt 0:04:06]} axb5 {[%emt 0:01:16]} 30. Rxb5 {[%emt 0:00:08]} Rc7 {[%emt 0:01:10]} 31. Ra5 {[%emt 0:03:47]} Be7 {[%emt 0:02:05]} 32. Ra7 {[%emt 0:02:22]} Kf8 {[%emt 0:05:18]} 33. Nb1 {[%emt 0:03:22]} Nb8 {[%emt 0:02:28]} 34. Na3 {[%emt 0:00:26]} Na6 {[%emt 0:00:48]} 35. Bb6 {[%emt 0:00:57]} Rd7 {[%emt 0:00:19]} 36. Nxc4 {[%emt 0:00:07]} Nc5 {[%emt 0:01:05]} 37. Bxc5 {[%emt 0:01:00]} dxc5 {[%emt 0:00:06]} 38. Nxe5 {[%emt 0:01:43]} Rc7 {[%emt 0:00:04]} 39. Nc4 {[%emt 0:01:49]} Rd7 {[%emt 0:00:38]} 40. d6 {[%emt 0:00:00]} Bf6 {[%emt 0:00:00]} 41. Nb6 {[%emt 0:01:07]} Rxd6 {[%emt 0:01:22]} 42. Rxb7 {[%emt 0:00:06]} Bxc3 {[%emt 0:00:06]} 43. Nd7+ {[%emt 0:00:25]} Kg8 {[%emt 0:00:16]} 44. Nxc5 {[%emt 0:00:24]} Rd1+ {[%emt 0:00:10]} 45. Nf1 {[%emt 0:00:39]} Bd4 {[%emt 0:00:05]} 46. Rd7 {[%emt 0:00:18]} 1-0

[Event "FIDE WYCC Open U14 2023"]
[Site "Montesilvano"]
[Date "2023.11.17"]
[Round "5.5"]
[White "Artemov, Andriy"]
[Black "Mamedov, Edgar"]
[Result "0-1"]
[ECO "E09"]
[WhiteElo "1779"]
[BlackElo "2234"]
[Annotator "ChessBase"]
[PlyCount "64"]
[EventDate "2023.11.13"]
[EventType "swiss"]
[EventCountry "ITA"]
[SourceTitle "playchess.com"]
[Source "ChessBase"]
[SourceQuality "1"]
[TimeControl "40/5400+30:1800+30"]

1. d4 {[%emt 0:00:03]} d5 {[%emt 0:00:12]} 2. c4 {[%emt 0:00:06]} e6 {[%emt 0:00:06]} 3. Nf3 {[%emt 0:00:12]} Nf6 {[%emt 0:00:17]} 4. g3 {[%emt 0:00:08]} Be7 {[%emt 0:00:22]} 5. Bg2 {[%emt 0:00:07]} O-O {[%emt 0:00:30]} 6. O-O {[%emt 0:00:07]} Nbd7 {[%emt 0:00:14]} 7. Qc2 {[%emt 0:00:15]} c6 {[%emt 0:00:17]} 8. Nbd2 {[%emt 0:00:07]} b6 {[%emt 0:00:13]} 9. e4 {[%emt 0:00:06]} dxc4 {[%emt 0:00:10]} 10. Nxc4 {[%emt 0:01:50]} Bb7 {[%emt 0:00:21]} 11. Rd1 {[%emt 0:06:26]} c5 {[%emt 0:01:03]} 12. d5 {[%emt 0:06:15]} exd5 {[%emt 0:00:59]} 13. exd5 {[%emt 0:00:05]} Bxd5 {[%emt 0:00:36]} 14. Bf4 {[%emt 0:02:00]} Qc8 {[%emt 0:11:03]} 15. Re1 {[%emt 0:02:46]} Re8 {[%emt 0:08:25]} 16. Ne3 {[%emt 0:03:51]} Be4 {[%emt 0:05:44]} 17. Qc4 {[%emt 0:08:37]} h6 {[%emt 0:01:16]} 18. Rad1 {[%emt 0:10:44]} Qb7 {[%emt 0:16:13]} 19. Nf5 {[%emt 0:24:59]} b5 {[%emt 0:10:18]} 20. Qc3 {[%emt 0:04:33]} Bxf5 {[%emt 0:06:23]} 21. Ne5 {[%emt 0:11:33]} Qc8 {[%emt 0:00:14]} 22. Bxa8 {[%emt 0:03:12]} Qxa8 {[%emt 0:00:10]} 23. Nxd7 {[%emt 0:00:26]} Bxd7 {[%emt 0:03:29]} 24. Re5 {[%emt 0:00:40]} Be6 {[%emt 0:02:21]} 25. Rde1 {[%emt 0:01:58]} Nd5 {[%emt 0:02:27]} 26. Qd2 {[%emt 0:01:40]} Nxf4 {[%emt 0:03:48]} 27. gxf4 {[%emt 0:00:17]} Rd8 {[%emt 0:01:03]} 28. Qe3 {[%emt 0:01:18]} Bf6 {[%emt 0:01:12]} 29. f5 {[%emt 0:00:48]} Bxe5 {[%emt 0:01:31]} 30. fxe6 {[%emt 0:00:01]} Bf6 {[%emt 0:00:27]} 31. e7 {[%emt 0:01:22]} Re8 {[%emt 0:00:25]} 32. Qxc5 {[%emt 0:00:09]} Qb7 {[%emt 0:00:17]} 0-1

[Event "FIDE WYCC Open U14 2023"]
[Site "Montesilvano"]
[Date "2023.11.17"]
[Round "5.6"]
[White "Tabuenca Mendataurigoitia, Daniel"]
[Black "Lin, Leo"]
[Result "1-0"]
[ECO "B51"]
[WhiteElo "2383"]
[BlackElo "2097"]
[Annotator "RC"]
[PlyCount "61"]
[EventDate "2023.11.13"]
[EventType "swiss"]
[EventCountry "ITA"]
[SourceTitle "playchess.com"]
[Source "ChessBase"]
[SourceQuality "1"]
[TimeControl "40/5400+30:1800+30"]

1. e4 {[%emt 0:00:02]} c5 {[%emt 0:02:29]} 2. Nf3 {[%emt 0:00:11]} d6 {[%emt 0:01:32]} 3. Bb5+ {[%emt 0:00:12]} Nd7 {[%emt 0:00:12]} 4. Ba4 {[%emt 0:00:06]} Ngf6 {[%emt 0:01:38]} 5. O-O {[%emt 0:00:10]} a6 {[%emt 0:07:39]} 6. c4 {[%emt 0:00:25]} e6 {[%emt 0:03:16]} 7. Nc3 {[%emt 0:00:58]} Be7 {[%emt 0:00:38]} 8. d4 {[%emt 0:00:21]} cxd4 {[%emt 0:02:15]} 9. Qxd4 {[%emt 0:00:13]} O-O {[%emt 0:01:06]} 10. Rd1 {[%emt 0:00:42]} Qc7 {[%emt 0:04:16]} 11. Bxd7 {[%emt 0:00:48]} Bxd7 {[%emt 0:00:56]} 12. Bf4 {[%emt 0:00:26]} Bc6 {[%emt 0:10:10]} 13. Bxd6 {[%emt 0:11:55]} Bxd6 {[%emt 0:00:53]} 14. Qxd6 {[%emt 0:00:15]} Qxd6 {[%emt 0:00:59]} 15. Rxd6 {[%emt 0:00:07]} Bxe4 {[%emt 0:01:03]} 16. Ne5 {[%emt 0:08:33]} Rac8 {[%emt 0:12:43]} 17. Rad1 {[%emt 0:11:04]} Bc2 {[%emt 0:09:47]} 18. R1d2 {[%emt 0:12:06]} Bf5 {[%emt 0:09:01]} 19. f3 {[%emt 0:03:22]} h5 {[%emt 0:00:42]} 20. Na4 {[%emt 0:17:53]} Rfe8 {[%emt 0:13:38]} 21. b4 {[%emt 0:02:28]} Re7 {[%emt 0:02:44]} 22. Nb6 {[%emt 0:02:16]} Rcc7 {[%emt 0:04:39]} 23. Rd8+ {[%emt 0:04:23]} Re8 {[%emt 0:03:20]} 24. Rxe8+ {[%emt 0:00:19]} Nxe8 {[%emt 0:00:02]} 25. Rd8 {[%emt 0:00:11]} Kf8 {[%emt 0:01:22]} 26. Na8 {[%emt 0:00:21]} Ke7 {[%emt 0:01:34]} 27. Rb8 {[%emt 0:00:50]} f6 {[%emt 0:04:16]} 28. Nxc7 {[%emt 0:00:07]} Nxc7 {[%emt 0:00:01]} 29. Rxb7 {[%emt 0:00:11]} Kd6 {[%emt 0:01:03]} 30. c5+ {[%emt 0:00:06]} Kxe5 {[%emt 0:00:54]} 31. Rxc7 {[%emt 0:00:02]} 1-0